[Event "*** Titled Tuesday Blitz"]
[Site "Chess.com"]
[Date "2020.05.12"]
[Round "3"]
[White "Gajuchess"]
[Black "tsvet2005"]
[Result "0-1"]
[WhiteElo "2696"]
[BlackElo "2491"]
[TimeControl "180+1"]
[EndTime "10:26:44 PDT"]
[Termination "tsvet2005 won by resignation"]

1. Nf3 {[%clk 0:03:00.9]} 1... d5 {[%clk 0:02:59.6]} 2. g3 {[%clk 0:03:00.4]}
2... c6 {[%clk 0:02:59.9]} 3. Bg2 {[%clk 0:03:00.8]} 3... Bg4 {[%clk 0:03:00.5]}
4. O-O {[%clk 0:03:01]} 4... Nd7 {[%clk 0:03:00.8]} 5. c4 {[%clk 0:03:01.4]}
5... e6 {[%clk 0:03:01]} 6. d3 {[%clk 0:03:00.6]} 6... Ngf6 {[%clk 0:02:58.7]}
7. h3 {[%clk 0:03:00.9]} 7... Bh5 {[%clk 0:02:58.5]} 8. cxd5 {[%clk 0:03:00.6]}
8... cxd5 {[%clk 0:02:52.1]} 9. Nc3 {[%clk 0:02:56.9]} 9... Be7 {[%clk 0:02:50]}
10. g4 {[%clk 0:02:53.2]} 10... Bg6 {[%clk 0:02:44]} 11. g5 {[%clk 0:02:49.3]}
11... Nh5 {[%clk 0:02:39.7]} 12. h4 {[%clk 0:02:38.9]} 12... O-O {[%clk
0:02:27.3]} 13. Bd2 {[%clk 0:02:38.7]} 13... a6 {[%clk 0:02:18]} 14. d4 {[%clk
0:02:21.3]} 14... Rc8 {[%clk 0:02:10.6]} 15. Re1 {[%clk 0:02:11.4]} 15... Qc7
{[%clk 0:02:09.7]} 16. e4 {[%clk 0:02:09.2]} 16... dxe4 {[%clk 0:02:06.5]} 17.
Nxe4 {[%clk 0:02:08.6]} 17... Nf4 {[%clk 0:02:06.4]} 18. Rc1 {[%clk 0:02:08.1]}
18... Qb8 {[%clk 0:02:06.4]} 19. Rxc8 {[%clk 0:02:07]} 19... Rxc8 {[%clk
0:02:07.3]} 20. Ne5 {[%clk 0:01:56.2]} 20... Nxg2 {[%clk 0:01:53.1]} 21. Nxd7
{[%clk 0:01:56.3]} 21... Qc7 {[%clk 0:01:52.6]} 22. Ndf6+ {[%clk 0:01:31.5]}
22... gxf6 {[%clk 0:01:43.7]} 23. gxf6 {[%clk 0:01:05]} 23... Nxe1 {[%clk
0:01:27.3]} 24. fxe7 {[%clk 0:00:43.8]} 24... Bxe4 {[%clk 0:01:11.5]} 25. Qg4+
{[%clk 0:00:43.3]} 25... Bg6 {[%clk 0:01:05.4]} 26. h5 {[%clk 0:00:41.8]} 26...
Qxe7 {[%clk 0:01:04.8]} 27. hxg6 {[%clk 0:00:38.2]} 27... hxg6 {[%clk
0:01:05.7]} 0-1

[Event "*** Titled Tuesday Blitz"]
[Site "Chess.com"]
[Date "2020.05.12"]
[Round "3"]
[White "GrafLermontov"]
[Black "Meri-Arabidze"]
[Result "0-1"]
[WhiteElo "2375"]
[BlackElo "2570"]
[TimeControl "180+1"]
[EndTime "10:26:44 PDT"]
[Termination "Meri-Arabidze won by resignation"]

1. d4 {[%clk 0:03:00.9]} 1... d5 {[%clk 0:02:59.2]} 2. c4 {[%clk 0:03:00.5]}
2... e6 {[%clk 0:02:59.8]} 3. Nc3 {[%clk 0:03:00.5]} 3... Nf6 {[%clk 0:02:59.7]}
4. cxd5 {[%clk 0:03:00.8]} 4... exd5 {[%clk 0:03:00.6]} 5. Bg5 {[%clk
0:03:00.6]} 5... Nbd7 {[%clk 0:03:00.2]} 6. e3 {[%clk 0:03:00.2]} 6... Be7
{[%clk 0:03:00.1]} 7. Bd3 {[%clk 0:02:59]} 7... c6 {[%clk 0:03:00.4]} 8. Qc2
{[%clk 0:02:58.1]} 8... Nf8 {[%clk 0:03:00.2]} 9. Nf3 {[%clk 0:02:55.6]} 9...
Ne6 {[%clk 0:02:59.5]} 10. Bh4 {[%clk 0:02:55.2]} 10... g6 {[%clk 0:02:59]} 11.
O-O {[%clk 0:02:50.2]} 11... O-O {[%clk 0:02:59]} 12. Rab1 {[%clk 0:02:48.3]}
12... a5 {[%clk 0:02:57.9]} 13. a3 {[%clk 0:02:47.8]} 13... Ng7 {[%clk
0:02:58.5]} 14. b4 {[%clk 0:02:47.5]} 14... axb4 {[%clk 0:02:58.7]} 15. axb4
{[%clk 0:02:48.4]} 15... Bf5 {[%clk 0:02:55.9]} 16. b5 {[%clk 0:02:33.2]} 16...
Bxd3 {[%clk 0:02:54.2]} 17. Qxd3 {[%clk 0:02:34.1]} 17... Nf5 {[%clk 0:02:54.6]}
18. Bxf6 {[%clk 0:02:31.2]} 18... Bxf6 {[%clk 0:02:55.5]} 19. bxc6 {[%clk
0:02:30.6]} 19... bxc6 {[%clk 0:02:56.4]} 20. Rfc1 {[%clk 0:02:26.5]} 20... Ra3
{[%clk 0:02:55.9]} 21. Qc2 {[%clk 0:02:21]} 21... Qa8 {[%clk 0:02:52.2]} 22. Ne2
{[%clk 0:02:12.1]} 22... Rc8 {[%clk 0:02:47.5]} 23. h3 {[%clk 0:02:03.4]} 23...
Nd6 {[%clk 0:02:47.1]} 24. Nd2 {[%clk 0:01:46]} 24... Be7 {[%clk 0:02:44.1]} 25.
Nf4 {[%clk 0:01:41.8]} 25... Qa6 {[%clk 0:02:31.7]} 26. Rb3 {[%clk 0:01:02.1]}
26... Ra2 {[%clk 0:02:23]} 27. Rb2 {[%clk 0:01:01.4]} 27... Rxb2 {[%clk
0:02:21.8]} 28. Qxb2 {[%clk 0:01:02.3]} 28... Nb5 {[%clk 0:02:21.8]} 29. Nxd5
{[%clk 0:00:50.1]} 29... Ba3 {[%clk 0:02:16]} 30. Qa2 {[%clk 0:00:16.6]} 30...
cxd5 {[%clk 0:02:12.4]} 31. Rxc8+ {[%clk 0:00:17.4]} 31... Qxc8 {[%clk
0:02:13.1]} 32. Qxd5 {[%clk 0:00:18.3]} 32... Qc1+ {[%clk 0:02:09.2]} 33. Nf1
{[%clk 0:00:18.5]} 33... Nc3 {[%clk 0:02:07.3]} 34. Qf3 {[%clk 0:00:16.1]} 34...
Qe1 {[%clk 0:02:00.5]} 35. Qa8+ {[%clk 0:00:05.6]} 35... Kg7 {[%clk 0:02:00.3]}
36. Qf3 {[%clk 0:00:06.1]} 36... Ne2+ {[%clk 0:01:59.4]} 37. Kh2 {[%clk
0:00:06.6]} 37... Qxf1 {[%clk 0:01:59.8]} 0-1

[Event "*** Titled Tuesday Blitz"]
[Site "Chess.com"]
[Date "2020.05.12"]
[Round "3"]
[White "ZarinaShafigullina"]
[Black "Kate1606"]
[Result "1-0"]
[WhiteElo "2316"]
[BlackElo "2057"]
[TimeControl "180+1"]
[EndTime "10:26:45 PDT"]
[Termination "ZarinaShafigullina won by checkmate"]

1. d4 {[%clk 0:03:00.9]} 1... d6 {[%clk 0:02:50.4]} 2. Nf3 {[%clk 0:03:01.8]}
2... g6 {[%clk 0:02:49.6]} 3. g3 {[%clk 0:03:02]} 3... Bg7 {[%clk 0:02:49.8]} 4.
Bg2 {[%clk 0:03:02.7]} 4... Nf6 {[%clk 0:02:49.9]} 5. O-O {[%clk 0:03:03.4]}
5... O-O {[%clk 0:02:50.1]} 6. c4 {[%clk 0:03:04]} 6... Nbd7 {[%clk 0:02:50.2]}
7. Nc3 {[%clk 0:03:04.7]} 7... c6 {[%clk 0:02:50.1]} 8. e4 {[%clk 0:03:04.7]}
8... Qe8 {[%clk 0:02:49.4]} 9. d5 {[%clk 0:03:01.6]} 9... c5 {[%clk 0:02:44.5]}
10. Re1 {[%clk 0:02:59.3]} 10... Qd8 {[%clk 0:02:35.9]} 11. h3 {[%clk
0:02:56.3]} 11... h6 {[%clk 0:02:33.2]} 12. g4 {[%clk 0:02:51.2]} 12... Rb8
{[%clk 0:02:26.5]} 13. Bf4 {[%clk 0:02:51.3]} 13... Ne8 {[%clk 0:02:11.6]} 14.
Qd2 {[%clk 0:02:49]} 14... Kh7 {[%clk 0:02:10.8]} 15. Bg3 {[%clk 0:02:43.2]}
15... a6 {[%clk 0:02:10.1]} 16. a4 {[%clk 0:02:42.7]} 16... Nc7 {[%clk
0:01:57.5]} 17. e5 {[%clk 0:02:31.8]} 17... dxe5 {[%clk 0:01:55.5]} 18. Nxe5
{[%clk 0:02:32.4]} 18... Nxe5 {[%clk 0:01:54.6]} 19. Bxe5 {[%clk 0:02:33.1]}
19... Bxe5 {[%clk 0:01:53.4]} 20. Rxe5 {[%clk 0:02:33.3]} 20... b5 {[%clk
0:01:27.3]} 21. axb5 {[%clk 0:02:22.8]} 21... axb5 {[%clk 0:01:27.1]} 22. cxb5
{[%clk 0:02:16.6]} 22... Nxb5 {[%clk 0:01:26]} 23. Nxb5 {[%clk 0:02:17.2]} 23...
Rxb5 {[%clk 0:01:25.8]} 24. Bf1 {[%clk 0:02:17.9]} 24... Rb4 {[%clk 0:01:21.4]}
25. Ra7 {[%clk 0:02:10.8]} 25... Rd4 {[%clk 0:00:55]} 26. Qe3 {[%clk 0:01:58.2]}
26... Rxd5 {[%clk 0:00:50.1]} 27. Rexe7 {[%clk 0:01:58.3]} 27... Kg7 {[%clk
0:00:23.1]} 28. Qc3+ {[%clk 0:01:49.1]} 28... Kg8 {[%clk 0:00:21.9]} 29. Qf6
{[%clk 0:01:48.4]} 29... Be6 {[%clk 0:00:17.9]} 30. Qxg6+ {[%clk 0:01:37.4]}
30... Kh8 {[%clk 0:00:13.6]} 31. Qxh6+ {[%clk 0:01:36.8]} 31... Kg8 {[%clk
0:00:13.7]} 32. Rxe6 {[%clk 0:01:36.2]} 32... fxe6 {[%clk 0:00:10.5]} 33. Qg7#
{[%clk 0:01:35.6]} 1-0

[Event "*** Titled Tuesday Blitz"]
[Site "Chess.com"]
[Date "2020.05.12"]
[Round "3"]
[White "Filip_Covic"]
[Black "GHANDEEVAM2003"]
[Result "0-1"]
[WhiteElo "2456"]
[BlackElo "2926"]
[TimeControl "180+1"]
[EndTime "10:26:46 PDT"]
[Termination "GHANDEEVAM2003 won by resignation"]

1. Nf3 {[%clk 0:03:00.9]} 1... Nf6 {[%clk 0:02:59.2]} 2. b3 {[%clk 0:02:59.7]}
2... g6 {[%clk 0:02:59.5]} 3. Bb2 {[%clk 0:02:59.6]} 3... Bg7 {[%clk 0:03:00.4]}
4. c4 {[%clk 0:02:59.5]} 4... O-O {[%clk 0:03:00.9]} 5. g3 {[%clk 0:02:59.3]}
5... c6 {[%clk 0:02:58.2]} 6. Bg2 {[%clk 0:02:59.3]} 6... d5 {[%clk 0:02:58.7]}
7. d3 {[%clk 0:02:59.3]} 7... Re8 {[%clk 0:02:56.3]} 8. O-O {[%clk 0:02:59.3]}
8... a5 {[%clk 0:02:56.7]} 9. a3 {[%clk 0:02:58.2]} 9... Na6 {[%clk 0:02:55.8]}
10. Nbd2 {[%clk 0:02:57.5]} 10... Bf5 {[%clk 0:02:50.6]} 11. Qc2 {[%clk
0:02:52.8]} 11... Rc8 {[%clk 0:02:49.7]} 12. c5 {[%clk 0:02:44.5]} 12... Qc7
{[%clk 0:02:43.8]} 13. Be5 {[%clk 0:02:38.8]} 13... Qd7 {[%clk 0:02:43.5]} 14.
e4 {[%clk 0:02:35.1]} 14... Bh3 {[%clk 0:02:40.1]} 15. Rab1 {[%clk 0:02:02.6]}
15... Rcd8 {[%clk 0:02:30.3]} 16. Rfd1 {[%clk 0:01:56.1]} 16... Qg4 {[%clk
0:02:19.5]} 17. exd5 {[%clk 0:01:42.2]} 17... Bxg2 {[%clk 0:02:13.3]} 18. Kxg2
{[%clk 0:01:43.1]} 18... Nxd5 {[%clk 0:02:13.4]} 19. d4 {[%clk 0:01:28.8]} 19...
f6 {[%clk 0:02:11.5]} 20. h3 {[%clk 0:01:22.6]} 20... Qh5 {[%clk 0:02:06.9]} 21.
g4 {[%clk 0:01:19.5]} 21... Qh6 {[%clk 0:02:02.6]} 22. Bg3 {[%clk 0:01:15.6]}
22... Nac7 {[%clk 0:02:03.1]} 23. Nc4 {[%clk 0:01:09.4]} 23... Ne6 {[%clk
0:02:02.1]} 24. h4 {[%clk 0:00:55.8]} 24... Rf8 {[%clk 0:01:46.1]} 25. Nxa5
{[%clk 0:00:35.4]} 25... f5 {[%clk 0:01:36.4]} 26. g5 {[%clk 0:00:35.1]} 26...
Qh5 {[%clk 0:01:35.8]} 27. Qd2 {[%clk 0:00:25.8]} 27... f4 {[%clk 0:01:35.1]}
28. Qe2 {[%clk 0:00:20.3]} 28... Qg4 {[%clk 0:01:31.6]} 29. Nxb7 {[%clk
0:00:17.9]} 29... fxg3 {[%clk 0:01:30.9]} 30. Nxd8 {[%clk 0:00:14.9]} 30...
Nef4+ {[%clk 0:01:30.2]} 0-1

[Event "*** Titled Tuesday Blitz"]
[Site "Chess.com"]
[Date "2020.05.12"]
[Round "3"]
[White "smshk35"]
[Black "Escanor89"]
[Result "1-0"]
[WhiteElo "2401"]
[BlackElo "2568"]
[TimeControl "180+1"]
[EndTime "10:26:48 PDT"]
[Termination "smshk35 won by resignation"]

1. e4 {[%clk 0:03:00.9]} 1... c5 {[%clk 0:02:57.6]} 2. Nf3 {[%clk 0:03:00.8]}
2... d6 {[%clk 0:02:57.1]} 3. d4 {[%clk 0:02:59.3]} 3... cxd4 {[%clk 0:02:56.9]}
4. Nxd4 {[%clk 0:03:00.2]} 4... Nf6 {[%clk 0:02:56.8]} 5. Nc3 {[%clk 0:03:00.6]}
5... a6 {[%clk 0:02:56.2]} 6. Bc4 {[%clk 0:03:00.8]} 6... e6 {[%clk 0:02:55.7]}
7. Bb3 {[%clk 0:03:01.3]} 7... b5 {[%clk 0:02:55.6]} 8. O-O {[%clk 0:03:00.7]}
8... Be7 {[%clk 0:02:55.5]} 9. Qf3 {[%clk 0:03:00.1]} 9... Qc7 {[%clk
0:02:55.2]} 10. Qg3 {[%clk 0:02:59.3]} 10... O-O {[%clk 0:02:54.5]} 11. Bh6
{[%clk 0:02:52.6]} 11... Ne8 {[%clk 0:02:54.2]} 12. Kh1 {[%clk 0:02:52.1]} 12...
Bd7 {[%clk 0:02:53.2]} 13. f4 {[%clk 0:02:51.4]} 13... Nc6 {[%clk 0:02:52.2]}
14. Nxc6 {[%clk 0:02:34]} 14... Bxc6 {[%clk 0:02:51.9]} 15. f5 {[%clk
0:02:32.5]} 15... Kh8 {[%clk 0:02:37.8]} 16. fxe6 {[%clk 0:02:29.7]} 16... gxh6
{[%clk 0:02:33.6]} 17. exf7 {[%clk 0:02:29.9]} 17... Ng7 {[%clk 0:02:27.7]} 18.
Nd5 {[%clk 0:02:22.9]} 18... Qd8 {[%clk 0:02:14.3]} 19. Rad1 {[%clk 0:02:16.3]}
19... Rc8 {[%clk 0:02:03.6]} 20. c3 {[%clk 0:02:08.8]} 20... Bg5 {[%clk
0:01:54.1]} 21. Qd3 {[%clk 0:01:24.2]} 21... a5 {[%clk 0:01:43.6]} 22. Bc2
{[%clk 0:01:22.9]} 22... Rxf7 {[%clk 0:00:31]} 23. Rxf7 {[%clk 0:01:16.5]} 23...
Qg8 {[%clk 0:00:30.8]} 24. Rdf1 {[%clk 0:01:14.9]} 24... Ne6 {[%clk 0:00:30.4]}
25. e5 {[%clk 0:01:11.5]} 25... Nc5 {[%clk 0:00:14]} 26. Rxh7+ {[%clk
0:01:10.7]} 1-0

[Event "*** Titled Tuesday Blitz"]
[Site "Chess.com"]
[Date "2020.05.12"]
[Round "3"]
[White "sergeikim"]
[Black "Bagirova"]
[Result "1-0"]
[WhiteElo "2410"]
[BlackElo "2179"]
[TimeControl "180+1"]
[EndTime "10:26:49 PDT"]
[Termination "sergeikim won by resignation"]

1. d4 {[%clk 0:03:00.9]} 1... d5 {[%clk 0:02:59.7]} 2. c4 {[%clk 0:03:01.8]}
2... e6 {[%clk 0:03:00.1]} 3. Nc3 {[%clk 0:02:49.5]} 3... a6 {[%clk 0:03:00]} 4.
cxd5 {[%clk 0:02:47.7]} 4... exd5 {[%clk 0:03:00.4]} 5. Nf3 {[%clk 0:02:48.5]}
5... Nf6 {[%clk 0:03:01]} 6. Bf4 {[%clk 0:02:48.8]} 6... Be6 {[%clk 0:03:01.6]}
7. e3 {[%clk 0:02:49.6]} 7... Bd6 {[%clk 0:03:01.8]} 8. Bg5 {[%clk 0:02:47]}
8... Nbd7 {[%clk 0:03:01]} 9. Bd3 {[%clk 0:02:47.9]} 9... c6 {[%clk 0:03:01.3]}
10. O-O {[%clk 0:02:46.6]} 10... Qc7 {[%clk 0:03:01.7]} 11. h3 {[%clk
0:02:43.6]} 11... h6 {[%clk 0:03:01.5]} 12. Bxf6 {[%clk 0:02:42.6]} 12... Nxf6
{[%clk 0:03:02.4]} 13. Rc1 {[%clk 0:02:42.2]} 13... O-O {[%clk 0:02:58.9]} 14.
Bb1 {[%clk 0:02:39.7]} 14... Rfe8 {[%clk 0:02:54.7]} 15. Qd3 {[%clk 0:02:38.1]}
15... Rac8 {[%clk 0:02:46.1]} 16. Rfe1 {[%clk 0:02:36.5]} 16... c5 {[%clk
0:02:32.4]} 17. dxc5 {[%clk 0:02:34.8]} 17... Qxc5 {[%clk 0:02:29.1]} 18. Nd4
{[%clk 0:02:33.9]} 18... Qa7 {[%clk 0:02:23.8]} 19. Nf5 {[%clk 0:02:31.1]} 19...
Bxf5 {[%clk 0:02:17.5]} 20. Qxf5 {[%clk 0:02:29.9]} 20... d4 {[%clk 0:02:17.9]}
21. Nd5 {[%clk 0:02:23.1]} 21... Nxd5 {[%clk 0:02:02.2]} 22. Rxc8 {[%clk
0:02:19.5]} 22... Nf6 {[%clk 0:01:47.7]} 23. Rxe8+ {[%clk 0:02:13.5]} 23... Nxe8
{[%clk 0:01:48.6]} 24. exd4 {[%clk 0:02:06.3]} 24... Nf6 {[%clk 0:01:47.7]} 25.
Qc8+ {[%clk 0:01:51.6]} 25... Bf8 {[%clk 0:01:44.7]} 26. Qc4 {[%clk 0:01:49.1]}
26... b5 {[%clk 0:01:41.5]} 27. Qd3 {[%clk 0:01:46.7]} 27... Qd7 {[%clk
0:01:39.1]} 28. d5 {[%clk 0:01:45.2]} 28... Qxd5 {[%clk 0:01:34.3]} 29. Qxd5
{[%clk 0:01:43.9]} 29... Nxd5 {[%clk 0:01:35.2]} 30. Re8 {[%clk 0:01:40.9]}
30... a5 {[%clk 0:01:30]} 31. Rb8 {[%clk 0:01:33.5]} 31... Nc7 {[%clk
0:01:10.4]} 32. Bd3 {[%clk 0:01:28.4]} 32... g6 {[%clk 0:01:05.8]} 33. Bxb5
{[%clk 0:01:26.7]} 33... Kg7 {[%clk 0:01:06.4]} 34. Bc4 {[%clk 0:01:25.5]} 34...
Bc5 {[%clk 0:01:02]} 35. Rb7 {[%clk 0:01:22.1]} 35... Bd6 {[%clk 0:00:59.8]} 36.
a3 {[%clk 0:01:20.9]} 36... a4 {[%clk 0:00:56.3]} 37. b4 {[%clk 0:01:18.4]}
37... axb3 {[%clk 0:00:54.6]} 38. Bxb3 {[%clk 0:01:18.3]} 38... Kf6 {[%clk
0:00:52.6]} 39. a4 {[%clk 0:01:17.7]} 39... Ne6 {[%clk 0:00:52]} 40. Bxe6 {[%clk
0:01:16.7]} 40... fxe6 {[%clk 0:00:50.1]} 41. a5 {[%clk 0:01:17.6]} 1-0

[Event "*** Titled Tuesday Blitz"]
[Site "Chess.com"]
[Date "2020.05.12"]
[Round "3"]
[White "Ladislav1969"]
[Black "baby_leo"]
[Result "1-0"]
[WhiteElo "2332"]
[BlackElo "2085"]
[TimeControl "180+1"]
[EndTime "10:26:49 PDT"]
[Termination "Ladislav1969 won on time"]

1. e4 {[%clk 0:03:00.9]} 1... c6 {[%clk 0:02:58.1]} 2. d4 {[%clk 0:03:00.4]}
2... d5 {[%clk 0:02:58.1]} 3. e5 {[%clk 0:03:01.3]} 3... Bf5 {[%clk 0:02:57.4]}
4. Nd2 {[%clk 0:03:01.4]} 4... e6 {[%clk 0:02:56.6]} 5. Nb3 {[%clk 0:03:01.6]}
5... Nd7 {[%clk 0:02:55.4]} 6. f4 {[%clk 0:03:01.6]} 6... h6 {[%clk 0:02:53.8]}
7. Be3 {[%clk 0:03:00.9]} 7... Ne7 {[%clk 0:02:51.2]} 8. Nf3 {[%clk 0:03:01]}
8... Ng6 {[%clk 0:02:48.9]} 9. g3 {[%clk 0:02:52.1]} 9... Be7 {[%clk 0:02:39.2]}
10. Be2 {[%clk 0:02:51]} 10... O-O {[%clk 0:02:38.4]} 11. O-O {[%clk 0:02:50]}
11... b6 {[%clk 0:02:36.1]} 12. c4 {[%clk 0:02:43.6]} 12... f6 {[%clk
0:02:25.6]} 13. Rc1 {[%clk 0:02:40.2]} 13... fxe5 {[%clk 0:02:19.1]} 14. dxe5
{[%clk 0:02:35.4]} 14... Kh8 {[%clk 0:01:47.8]} 15. Nfd4 {[%clk 0:02:30.1]}
15... Rc8 {[%clk 0:01:18.5]} 16. Nxf5 {[%clk 0:02:21.8]} 16... exf5 {[%clk
0:01:12.1]} 17. cxd5 {[%clk 0:02:21.1]} 17... cxd5 {[%clk 0:01:08.8]} 18. Qxd5
{[%clk 0:02:20.9]} 18... Nc5 {[%clk 0:00:46.6]} 19. Qxd8 {[%clk 0:02:13]} 19...
Rfxd8 {[%clk 0:00:42.6]} 20. Nd4 {[%clk 0:02:04.6]} 20... Rf8 {[%clk 0:00:23.2]}
21. b4 {[%clk 0:01:49.5]} 21... Ne4 {[%clk 0:00:15.6]} 22. Nc6 {[%clk
0:01:49.5]} 22... Kg8 {[%clk 0:00:10.9]} 23. b5 {[%clk 0:01:43]} 23... a6 {[%clk
0:00:09.2]} 24. Nxe7+ {[%clk 0:01:37.5]} 24... Nxe7 {[%clk 0:00:08.5]} 25. bxa6
{[%clk 0:01:37.7]} 25... Nc5 {[%clk 0:00:03.7]} 26. Bxc5 {[%clk 0:01:33.7]}
26... bxc5 {[%clk 0:00:03.4]} 27. Rfd1 {[%clk 0:01:31.7]} 1-0

[Event "*** Titled Tuesday Blitz"]
[Site "Chess.com"]
[Date "2020.05.12"]
[Round "3"]
[White "vugarrasulov"]
[Black "Gennady_Kozlov"]
[Result "1-0"]
[WhiteElo "2790"]
[BlackElo "2594"]
[TimeControl "180+1"]
[EndTime "10:26:57 PDT"]
[Termination "vugarrasulov won by resignation"]

1. e4 {[%clk 0:03:00.9]} 1... e6 {[%clk 0:02:59.9]} 2. d4 {[%clk 0:03:00.5]}
2... d5 {[%clk 0:03:00.2]} 3. Nd2 {[%clk 0:03:00.8]} 3... dxe4 {[%clk
0:02:58.2]} 4. Nxe4 {[%clk 0:03:00.7]} 4... Nd7 {[%clk 0:02:58.9]} 5. g3 {[%clk
0:03:00.9]} 5... Ngf6 {[%clk 0:02:59.3]} 6. Nxf6+ {[%clk 0:03:01.5]} 6... Nxf6
{[%clk 0:02:58.5]} 7. Bg2 {[%clk 0:03:02]} 7... c6 {[%clk 0:02:55]} 8. Nf3
{[%clk 0:03:01.7]} 8... Bd6 {[%clk 0:02:55.4]} 9. O-O {[%clk 0:03:02]} 9... O-O
{[%clk 0:02:55.8]} 10. c4 {[%clk 0:03:02.3]} 10... Qc7 {[%clk 0:02:44.9]} 11.
Qe2 {[%clk 0:02:58.4]} 11... Re8 {[%clk 0:02:41.4]} 12. Bg5 {[%clk 0:02:56]}
12... Nd7 {[%clk 0:02:34.3]} 13. Rac1 {[%clk 0:02:49.1]} 13... b6 {[%clk
0:02:33.5]} 14. d5 {[%clk 0:02:26.7]} 14... Bb7 {[%clk 0:02:23.2]} 15. Qc2
{[%clk 0:02:21.3]} 15... cxd5 {[%clk 0:02:14.3]} 16. Nd4 {[%clk 0:02:18]} 16...
a6 {[%clk 0:01:52.1]} 17. cxd5 {[%clk 0:02:08.3]} 17... Qxc2 {[%clk 0:01:53]}
18. Nxc2 {[%clk 0:02:03.3]} 18... exd5 {[%clk 0:01:49.7]} 19. Rfd1 {[%clk
0:01:57.2]} 19... Bc5 {[%clk 0:01:29.6]} 20. b4 {[%clk 0:01:52.1]} 20... Be7
{[%clk 0:01:24.4]} 21. Be3 {[%clk 0:01:46.5]} 21... b5 {[%clk 0:01:20.4]} 22.
Bxd5 {[%clk 0:01:42.3]} 22... Bxd5 {[%clk 0:01:21.3]} 23. Rxd5 {[%clk
0:01:42.6]} 23... Nf6 {[%clk 0:01:21.9]} 24. Rdd1 {[%clk 0:01:42]} 24... Rac8
{[%clk 0:01:21.8]} 25. a3 {[%clk 0:01:38.6]} 25... Rc3 {[%clk 0:01:17.6]} 26.
Bd4 {[%clk 0:01:38.9]} 26... Rc4 {[%clk 0:01:17]} 27. Ne3 {[%clk 0:01:36.7]}
27... Rxc1 {[%clk 0:01:09.8]} 28. Rxc1 {[%clk 0:01:37.6]} 28... Rd8 {[%clk
0:01:01.5]} 29. Nf5 {[%clk 0:01:35.3]} 29... Kf8 {[%clk 0:00:53.3]} 30. Rc6
{[%clk 0:01:32.1]} 30... a5 {[%clk 0:00:44.7]} 31. bxa5 {[%clk 0:01:23.6]} 31...
Bxa3 {[%clk 0:00:39.1]} 32. a6 {[%clk 0:01:24]} 32... Ne4 {[%clk 0:00:21.9]} 33.
a7 {[%clk 0:01:21.6]} 33... Ra8 {[%clk 0:00:20.2]} 34. Rb6 {[%clk 0:01:14.1]}
1-0

[Event "*** Titled Tuesday Blitz"]
[Site "Chess.com"]
[Date "2020.05.12"]
[Round "3"]
[White "I_Hit_18K_on_BS"]
[Black "Andro2"]
[Result "0-1"]
[WhiteElo "2190"]
[BlackElo "2426"]
[TimeControl "180+1"]
[EndTime "10:26:57 PDT"]
[Termination "Andro2 won on time"]

1. e4 {[%clk 0:03:00.9]} 1... a6 {[%clk 0:02:55.8]} 2. d4 {[%clk 0:02:47.1]}
2... e6 {[%clk 0:02:54.2]} 3. Nc3 {[%clk 0:02:40]} 3... d5 {[%clk 0:02:52.9]} 4.
Nf3 {[%clk 0:01:48.1]} 4... Nf6 {[%clk 0:02:50.2]} 5. Bd3 {[%clk 0:00:52.1]}
5... c5 {[%clk 0:02:43]} 6. e5 {[%clk 0:00:47.2]} 6... Nfd7 {[%clk 0:02:40.8]}
7. Bg5 {[%clk 0:00:43.6]} 7... Qb6 {[%clk 0:02:38.7]} 8. dxc5 {[%clk 0:00:26]}
8... Bxc5 {[%clk 0:02:15.3]} 9. Na4 {[%clk 0:00:20.6]} 9... Bxf2+ {[%clk
0:02:05]} 10. Kf1 {[%clk 0:00:19.7]} 10... Qc6 {[%clk 0:01:57.3]} 11. Kxf2
{[%clk 0:00:16.2]} 11... Qxa4 {[%clk 0:01:56.4]} 12. Rf1 {[%clk 0:00:13.7]}
12... Nc6 {[%clk 0:01:45]} 13. Qe2 {[%clk 0:00:12]} 13... h6 {[%clk 0:01:27.1]}
14. Bh4 {[%clk 0:00:04.3]} 14... Ncxe5 {[%clk 0:01:24.7]} 15. Nxe5 {[%clk
0:00:02.6]} 15... Qxh4+ {[%clk 0:01:23.6]} 16. Kg1 {[%clk 0:00:02]} 16... Qd4+
{[%clk 0:01:22.8]} 17. Qf2 {[%clk 0:00:01.3]} 17... Qxf2+ {[%clk 0:01:21.1]} 18.
Rxf2 {[%clk 0:00:02.2]} 18... Nxe5 {[%clk 0:01:21.2]} 19. Re1 {[%clk 0:00:02.6]}
19... Nxd3 {[%clk 0:01:20.1]} 20. cxd3 {[%clk 0:00:02.4]} 20... O-O {[%clk
0:01:20.5]} 21. d4 {[%clk 0:00:02.8]} 21... Bd7 {[%clk 0:01:20.3]} 22. Rc2
{[%clk 0:00:02.9]} 22... Rfc8 {[%clk 0:01:15.8]} 23. Rd2 {[%clk 0:00:02.9]}
23... Kf8 {[%clk 0:01:13.3]} 24. Kf2 {[%clk 0:00:01.6]} 24... Rc7 {[%clk
0:01:11.3]} 25. Ke3 {[%clk 0:00:01.4]} 25... Rac8 {[%clk 0:01:11.7]} 0-1